bitfinex-derivatives/quotes_BTCF0:USTF0_20250127
["timestamp","ask_amount","ask_price","bid_price","bid_amount"]
[1737999804777,0.200497,99787.0,99786.0,0.16045926]
[1737999804982,0.200497,99787.0,99786.0,0.05039579]
[1737999805280,0.2005,99786.0,99784.0,0.3608]
[1737999805500,0.09358792,99791.0,99784.0,0.3608]
[1737999805501,0.200501,99785.0,99784.0,0.3608]
[1737999805689,0.09358792,99791.0,99784.0,0.3608]
[1737999805980,0.09358792,99791.0,99784.0,0.31076347]
[1737999805981,0.20549,99791.0,99784.0,0.31076347]
[1737999806181,0.200491,99790.0,99784.0,0.31076347]
[1737999806380,0.200497,99787.0,99784.0,0.31076347]
[1737999806681,0.200492,99790.0,99784.0,0.31076347]
[1737999806881,0.001,99785.0,99784.0,0.31076347]
[1737999807073,0.001,99785.0,99784.0,0.36007819]
[1737999807580,0.001,99787.0,99775.0,0.1575]
[1737999807783,0.200519,99776.0,99775.0,0.1575]
[1737999807971,0.3608,99784.0,99770.0,0.3608]
[1737999808376,0.050126,99783.0,99765.0,0.00124]
[1737999808573,0.3608,99773.0,99756.0,0.1614]
[1737999808782,0.200539,99767.0,99756.0,0.11436347]
[1737999808976,0.200539,99767.0,99756.0,0.16545358]
[1737999809180,0.3608,99773.0,99756.0,0.16545358]
[1737999809388,0.200557,99757.0,99756.0,0.05109011]
[1737999809576,0.200557,99757.0,99752.0,1.65696]
[1737999809879,0.200552,99760.0,99752.0,1.6558]
[1737999810083,0.3608,99773.0,99752.0,1.70620804]
[1737999810284,0.200557,99757.0,99756.0,0.001]
[1737999810878,0.3608,99763.0,99752.0,0.1558]
[1737999811073,0.200565,99753.0,99752.0,0.1558]
[1737999811276,0.200568,99752.0,99749.0,0.04918131]
[1737999811475,0.200568,99752.0,99745.0,0.1604]
[1737999811882,0.200568,99752.0,99745.0,0.11036347]
[1737999812588,0.20057,99751.0,99745.0,0.15936417]
[1737999812774,0.3628,99763.0,99745.0,0.15936417]
[1737999812775,0.200559,99757.0,99745.0,0.15936417]
[1737999812980,0.3628,99763.0,99745.0,0.15936417]
[1737999813181,0.200564,99754.0,99745.0,0.15936417]
[1737999813474,0.200564,99754.0,99745.0,0.16036417]
[1737999813886,0.200564,99754.0,99746.0,1.5]
[1737999814483,0.3608,99763.0,99746.0,1.5]
[1737999814874,0.200555,99758.0,99750.0,0.09471543]
[1737999815073,0.200562,99755.0,99750.0,0.09471543]
[1737999815280,0.200565,99754.0,99746.0,1.50116]
[1737999815577,0.200565,99754.0,99746.0,1.5]
[1737999815777,0.3608,99763.0,99746.0,1.5]
[1737999815989,0.3608,99763.0,99751.0,0.200568]
[1737999816285,0.561346,99763.0,99753.0,0.200564]
[1737999816489,0.3608,99763.0,99755.0,0.20056]
[1737999816890,0.3608,99763.0,99750.0,0.34532296]
[1737999817380,0.3608,99763.0,99750.0,0.14475196]
[1737999817581,0.0895787,99768.0,99758.0,0.3608]
[1737999817785,0.200538,99767.0,99758.0,0.561355]
[1737999817991,0.0895787,99768.0,99758.0,0.31076347]
[1737999817992,0.200539,99766.0,99758.0,0.31076347]
[1737999818188,0.0895787,99768.0,99758.0,0.31076347]
[1737999818379,0.200541,99765.0,99758.0,0.31076347]
[1737999818579,0.0895787,99768.0,99758.0,0.31076347]
[1737999818879,0.0895787,99765.0,99764.0,0.200543]
[1737999819078,0.14930679,99775.0,99769.0,0.200531]
[1737999819281,0.14930679,99775.0,99770.0,0.1573]
[1737999819579,0.3608,99773.0,99771.0,1.5]
[1737999819884,0.200527,99772.0,99771.0,0.1602]
[1737999820082,0.200577,99747.0,99746.0,0.3608]
[1737999820282,0.050133,99770.0,99730.0,0.1573]
[1737999820283,0.200581,99745.0,99730.0,0.1573]
[1737999820508,0.561381,99745.0,99730.0,0.1573]
[1737999820877,0.561381,99745.0,99736.0,0.04922745]
[1737999821081,0.3608,99745.0,99730.0,0.35791]
[1737999821387,0.3608,99745.0,99732.0,0.3608]
[1737999821597,0.3608,99745.0,99732.0,0.561407]
[1737999821781,0.3608,99745.0,99732.0,0.562647]
[1737999821982,0.3608,99745.0,99732.0,0.36204]
[1737999822277,0.200594,99739.0,99732.0,0.3608]
[1737999822481,0.200594,99739.0,99733.0,0.200604]
[1737999822681,0.200595,99739.0,99732.0,0.3608]
[1737999823399,0.561401,99735.0,99732.0,0.05127586]
[1737999823588,0.561401,99735.0,99729.0,0.003]
[1737999823992,0.561401,99735.0,99725.0,0.00343773]
[1737999823993,0.200619,99726.0,99725.0,0.00343773]
[1737999824185,0.3608,99735.0,99724.0,0.3608]
[1737999824795,0.3608,99735.0,99724.0,0.41137331]
[1737999825093,0.001,99735.0,99732.0,0.200607]
[1737999825299,0.001,99735.0,99728.0,0.200614]
[1737999825691,0.001,99735.0,99729.0,1.5]
[1737999826797,0.001,99735.0,99732.0,0.3608]
[1737999826988,0.11981974,99746.0,99732.0,0.31076347]
[1737999827296,0.14683141,99753.0,99752.0,0.200567]
[1737999827498,0.3608,99772.0,99747.0,0.3608]
[1737999827698,0.3608,99772.0,99759.0,0.561353]
[1737999828005,0.3608,99772.0,99759.0,2.061353]
[1737999828006,0.14964052,99761.0,99759.0,2.061353]
[1737999829505,0.15064052,99761.0,99759.0,2.10308427]
[1737999830197,0.14964052,99761.0,99759.0,2.05304774]
[1737999830598,0.14964052,99761.0,99760.0,0.200551]
[1737999830998,0.15064052,99761.0,99760.0,0.200551]
[1737999831595,0.001,99761.0,99760.0,0.200551]
[1737999832501,0.0001504,99770.0,99760.0,0.200551]
[1737999832701,0.200541,99766.0,99759.0,0.40253127]
[1737999832896,0.0001504,99770.0,99759.0,0.40253127]
[1737999833204,0.200537,99768.0,99759.0,0.35249474]
[1737999833890,0.0001504,99770.0,99761.0,0.200548]
[1737999834097,0.0001504,99770.0,99759.0,0.35249474]
[1737999834302,0.200537,99767.0,99759.0,0.35249474]
[1737999834691,0.0001504,99770.0,99759.0,0.35249474]
[1737999835198,0.2006814,99770.0,99759.0,0.35249474]
[1737999835401,0.561351,99760.0,99759.0,0.04173127]
[1737999835590,0.561351,99760.0,99755.0,0.00124]
[1737999835591,0.3608,99760.0,99755.0,0.00124]
[1737999835791,0.3608,99760.0,99750.0,0.0001504]
[1737999835991,0.3608,99751.0,99750.0,0.0001504]
[1737999836199,0.3608,99751.0,99733.0,1.5]
[1737999836401,0.3608,99740.0,99728.0,0.3608]
[1737999836703,0.3608,99730.0,99718.0,0.36196]
[1737999836905,0.200622,99725.0,99719.0,1.5]
[1737999837696,0.200621,99725.0,99718.0,0.4024331]
[1737999838789,0.200624,99724.0,99718.0,0.4024331]
[1737999838997,0.200639,99716.0,99706.0,0.35907441]
[1737999839196,0.200639,99716.0,99714.0,0.25359533]
[1737999839589,0.3608,99719.0,99714.0,0.25359533]
[1737999840294,0.3608,99719.0,99709.0,0.14475196]
[1737999840502,0.3608,99719.0,99707.0,0.04184316]
[1737999840696,0.200646,99713.0,99705.0,0.3608]
[1737999840898,0.3608,99719.0,99705.0,0.3608]
[1737999841194,0.001,99724.0,99716.0,0.3608]
[1737999842100,0.3608,99730.0,99721.0,0.200629]
[1737999842295,0.3608,99730.0,99719.0,0.14475196]
[1737999843093,0.3608,99730.0,99718.0,0.200634]
[1737999843295,0.20064,99716.0,99705.0,0.3608]
[1737999843496,0.3608,99721.0,99700.0,0.05596397]
[1737999843701,0.3608,99703.0,99700.0,0.05596397]
[1737999843899,0.200669,99702.0,99700.0,0.05596397]
[1737999845309,0.200669,99702.0,99700.0,0.00592744]
[1737999845508,0.200669,99702.0,99700.0,0.00577711]
[1737999846204,0.3608,99703.0,99673.0,0.35907441]
[1737999846205,0.200694,99689.0,99673.0,0.35907441]
[1737999846409,0.561494,99689.0,99673.0,0.35907441]
[1737999846705,0.3608,99689.0,99673.0,0.35907441]
[1737999846896,0.561502,99685.0,99673.0,1.85907441]
[1737999847596,0.561502,99685.0,99669.0,0.003]
[1737999848399,0.200726,99674.0,99669.0,0.200733]
[1737999848599,0.200737,99668.0,99656.0,0.00150463]
[1737999848808,0.200737,99668.0,99664.0,0.200743]
[1737999849009,0.200744,99664.0,99658.0,0.200755]
[1737999849610,0.3608,99665.0,99658.0,0.04171251]
[1737999849805,0.3608,99665.0,99649.0,0.1655]
[1737999849806,0.200754,99659.0,99645.0,0.200782]
[1737999849994,0.200762,99655.0,99638.0,0.200795]
[1737999850194,0.200762,99655.0,99637.0,0.77944252]
[1737999850605,0.3608,99660.0,99642.0,0.04298559]
[1737999850807,0.200761,99656.0,99642.0,0.60457259]
[1737999851111,0.200761,99656.0,99643.0,0.200786]
[1737999851308,0.200761,99656.0,99643.0,0.15374947]
[1737999851712,0.200761,99656.0,99643.0,0.19576786]
[1737999852408,0.200761,99656.0,99655.0,0.561562]
[1737999852409,0.001,99656.0,99655.0,0.561562]
[1737999852607,0.001,99656.0,99655.0,0.200762]
[1737999852907,0.002,99656.0,99655.0,0.200762]
[1737999853113,0.002,99656.0,99651.0,0.3608]
[1737999853810,0.002,99656.0,99654.0,0.200762]
[1737999854007,0.002,99656.0,99655.0,1.5]
[1737999854313,0.200719,99677.0,99655.0,1.5]
[1737999854519,0.200719,99677.0,99660.0,0.14475196]
[1737999854703,0.200719,99677.0,99662.0,0.200746]
[1737999855007,0.00015049,99678.0,99659.0,0.3608]
[1737999855008,0.200726,99673.0,99659.0,0.3608]
[1737999856211,0.200729,99672.0,99659.0,0.40272979]
[1737999856413,0.3608,99671.0,99659.0,0.04192979]
[1737999856718,0.20076,99656.0,99655.0,1.45116347]
[1737999856921,0.20076,99656.0,99655.0,1.44996347]
[1737999857212,0.20076,99656.0,99652.0,0.04191714]
[1737999857404,0.3608,99671.0,99648.0,0.3608]
[1737999857405,0.200766,99654.0,99648.0,0.35268061]
[1737999857806,0.200766,99654.0,99649.0,1.5]
[1737999858020,0.200758,99657.0,99649.0,1.5]
[1737999858303,0.1583,99662.0,99649.0,1.5]
[1737999858508,0.201762,99656.0,99652.0,0.002]
[1737999858913,0.201762,99656.0,99649.0,1.50316]
[1737999858914,0.001,99654.0,99649.0,1.50316]
[1737999859112,0.001,99654.0,99649.0,1.502]
[1737999859325,0.001,99654.0,99653.0,0.3608]
[1737999859513,0.3608,99685.0,99653.0,0.3608]
[1737999859514,0.001,99662.0,99653.0,0.3608]
[1737999859813,0.200764,99654.0,99649.0,1.50316]
[1737999860017,0.200772,99650.0,99649.0,0.002]
[1737999860206,0.561572,99650.0,99649.0,0.002]
[1737999860410,0.3608,99650.0,99633.0,0.3608]
[1737999860609,0.3608,99642.0,99633.0,0.3608]
[1737999860816,0.200793,99640.0,99633.0,0.3608]
[1737999861013,0.3608,99642.0,99624.0,0.49876]
[1737999861220,0.3608,99642.0,99630.0,0.14475196]
[1737999861518,0.3608,99642.0,99630.0,1.64475196]
[1737999861717,0.3618,99642.0,99633.0,0.001]
[1737999862022,0.3618,99642.0,99635.0,0.200802]
[1737999862222,0.3618,99642.0,99633.0,0.001]
[1737999862719,0.3608,99634.0,99633.0,0.001]
[1737999862907,0.561604,99634.0,99633.0,0.001]
[1737999863108,0.3608,99634.0,99624.0,0.003]
[1737999863307,0.200823,99625.0,99624.0,0.003]
[1737999863519,0.3608,99634.0,99610.0,0.14475196]
[1737999863721,0.200828,99623.0,99617.0,0.0436176]
[1737999864020,0.3608,99626.0,99617.0,0.0436176]
[1737999864217,0.561637,99618.0,99617.0,0.0436176]
[1737999864422,0.561637,99618.0,99617.0,0.0015057]
[1737999865311,0.200853,99611.0,99609.0,0.003]
[1737999865512,0.3608,99610.0,99609.0,0.003]
[1737999866524,0.200871,99601.0,99600.0,0.05296347]
[1737999866818,0.561671,99601.0,99600.0,0.05296347]
[1737999868111,0.3608,99601.0,99600.0,0.25383647]
[1737999868921,0.3608,99601.0,99600.0,0.05296347]
[1737999869116,0.3608,99601.0,99600.0,0.08808663]
[1737999869324,0.3257,99609.0,99600.0,0.08808663]
[1737999869517,0.3257,99609.0,99600.0,0.28895963]
[1737999869717,0.3257,99609.0,99600.0,0.0380501]
[1737999869916,0.6865,99609.0,99600.0,0.0380501]
[1737999870112,0.20086,99607.0,99600.0,0.0380501]
[1737999870316,0.200863,99605.0,99600.0,0.0380501]
[1737999870521,0.3608,99609.0,99600.0,0.0380501]
[1737999870919,0.00015057,99610.0,99600.0,0.0380501]
[1737999871138,0.20086,99607.0,99601.0,0.1697]
[1737999872130,0.200862,99606.0,99601.0,0.1697]
[1737999872317,0.00015057,99610.0,99601.0,0.1697]
[1737999872623,0.36095057,99610.0,99601.0,0.11966347]
[1737999873510,0.36095057,99610.0,99600.0,0.0380501]
[1737999873816,0.200871,99601.0,99600.0,0.00292694]
[1737999874019,0.3608,99602.0,99579.0,0.003]
[1737999874218,0.561713,99580.0,99579.0,0.003]
[1737999875727,0.200919,99577.0,99567.0,0.19188363]
[1737999876026,0.200922,99576.0,99567.0,0.22843356]
[1737999876211,0.3638,99580.0,99567.0,0.03654993]
[1737999876415,0.3638,99580.0,99563.0,0.3608]
[1737999876623,0.3648,99580.0,99563.0,0.3608]
[1737999876918,0.3618,99580.0,99563.0,0.3608]
[1737999877428,0.3608,99580.0,99567.0,0.001]
[1737999877612,0.20092,99577.0,99567.0,0.001]
[1737999878013,0.3608,99580.0,99567.0,0.001]
[1737999878619,0.200933,99571.0,99567.0,0.001]
[1737999878820,0.200942,99566.0,99561.0,0.1658]
[1737999879028,0.200942,99566.0,99554.0,0.200964]
[1737999879029,0.200932,99571.0,99557.0,0.200959]
[1737999879326,0.200939,99568.0,99557.0,0.200959]
[1737999879530,0.20094,99567.0,99557.0,0.03548387]
[1737999879711,0.3608,99569.0,99551.0,0.32916]
[1737999880029,0.200944,99565.0,99564.0,0.001]
[1737999880718,0.200958,99558.0,99557.0,0.001]
[1737999881014,0.561758,99558.0,99557.0,0.001]
[1737999881818,0.200987,99544.0,99537.0,0.19335196]
[1737999882230,0.200988,99543.0,99537.0,0.19335196]
[1737999882431,0.3608,99546.0,99537.0,0.22883583]
[1737999882821,0.3608,99558.0,99537.0,0.58963583]
[1737999883124,0.200947,99564.0,99552.0,0.200969]
[1737999883317,0.3608,99559.0,99548.0,0.3608]
[1737999883519,0.561756,99559.0,99548.0,0.3608]
[1737999884019,0.3608,99559.0,99548.0,0.3608]
[1737999884220,0.3608,99559.0,99555.0,0.200963]
[1737999884424,0.36095064,99567.0,99549.0,0.14475196]
[1737999884630,0.36095064,99567.0,99550.0,0.4995]
[1737999884814,0.00015064,99567.0,99557.0,0.200959]
[1737999885126,0.00015064,99567.0,99558.0,0.3608]
[1737999885127,0.001,99559.0,99558.0,0.3608]
[1737999885530,0.00015064,99567.0,99558.0,0.561756]
[1737999885831,0.00115064,99567.0,99559.0,0.200956]
[1737999886020,0.00115064,99567.0,99563.0,0.200948]
[1737999886223,0.00015064,99567.0,99557.0,0.14475196]
[1737999886423,0.00015064,99567.0,99563.0,0.200946]
[1737999886722,0.00015064,99567.0,99557.0,0.14475196]
[1737999886929,0.00015064,99567.0,99566.0,0.3608]
[1737999887128,0.00015064,99567.0,99566.0,0.561742]
[1737999887315,0.3608,99596.0,99584.0,0.200905]
[1737999887520,0.3608,99596.0,99586.0,0.200901]
[1737999887922,0.3608,99596.0,99586.0,0.15086447]
[1737999888324,0.3608,99596.0,99587.0,0.200898]
[1737999888521,0.1657,99599.0,99582.0,0.200908]
[1737999889029,0.00015064,99601.0,99582.0,0.200908]
[1737999889030,0.00015064,99601.0,99596.0,0.200881]
[1737999889230,0.00015064,99601.0,99591.0,0.20089]
[1737999889525,0.003,99596.0,99593.0,0.200885]
[1737999889726,0.003,99596.0,99583.0,0.1572]
[1737999889929,0.200905,99584.0,99583.0,0.1572]
[1737999890921,0.200905,99584.0,99583.0,0.10716347]
[1737999891122,0.202905,99584.0,99583.0,0.10716347]
[1737999891328,0.208905,99584.0,99583.0,0.10716347]
[1737999892123,0.008,99584.0,99583.0,0.10716347]
[1737999892417,0.008,99584.0,99583.0,0.30807047]
[1737999893828,0.008,99584.0,99583.0,1.75803394]
[1737999894237,0.3608,99599.0,99583.0,1.55712694]
[1737999894544,0.00015064,99601.0,99600.0,0.200873]
[1737999895132,0.00015064,99601.0,99600.0,0.561673]
[1737999895643,0.11916446,99633.0,99612.0,0.050211]
[1737999895827,0.08753861,99633.0,99632.0,0.561608]
[1737999896335,0.08753861,99633.0,99632.0,0.200808]
[1737999897032,0.00015055,99642.0,99632.0,0.15077147]
[1737999897227,0.00015055,99642.0,99624.0,0.3608]
[1737999897531,0.00015055,99642.0,99623.0,0.00015055]
[1737999897532,0.200807,99633.0,99623.0,0.00015055]
[1737999897723,0.004,99633.0,99623.0,0.00015055]
[1737999898133,0.200809,99632.0,99623.0,0.00015055]
[1737999898442,0.200809,99632.0,99623.0,0.04438269]
[1737999898443,0.3308,99632.0,99623.0,0.04438269]
[1737999898628,0.200824,99625.0,99623.0,0.00015055]
[1737999898833,0.200824,99625.0,99623.0,0.00115055]
[1737999899134,0.531609,99632.0,99623.0,0.00115055]
[1737999899525,0.1663,99632.0,99623.0,0.00115055]
[1737999899823,0.1663,99632.0,99623.0,0.20197655]
[1737999900027,0.006,99633.0,99623.0,0.15194002]
[1737999900226,0.006,99633.0,99620.0,0.55175328]
[1737999900436,0.007,99632.0,99628.0,0.3608]
[1737999900622,0.01,99632.0,99631.0,0.20081]
[1737999900821,0.01,99632.0,99628.0,0.3608]
[1737999901022,0.003,99632.0,99628.0,0.3608]
[1737999901226,0.007,99633.0,99623.0,0.001]
[1737999901419,0.3608,99624.0,99623.0,0.001]
[1737999901636,0.3608,99624.0,99620.0,0.00015055]
[1737999901637,0.200831,99621.0,99620.0,0.00015055]
[1737999901820,0.200831,99621.0,99582.0,0.1693]
[1737999901821,0.200873,99601.0,99582.0,0.1693]
[1737999902023,0.3608,99605.0,99582.0,0.1693]
[1737999902221,0.1691,99604.0,99585.0,0.200902]
[1737999902425,0.1691,99604.0,99590.0,0.14475196]
[1737999902426,0.200878,99598.0,99590.0,0.14475196]
[1737999902621,0.3608,99596.0,99582.0,0.21492241]
[1737999902827,0.1691,99604.0,99583.0,0.200906]
[1737999903023,0.3608,99595.0,99576.0,0.1637]
[1737999903230,0.200886,99594.0,99577.0,0.200919]
[1737999903432,0.20089,99592.0,99577.0,0.200919]
[1737999903622,0.3608,99593.0,99580.0,0.14475196]
[1737999903830,0.00015055,99599.0,99584.0,0.3608]
[1737999904133,0.00015055,99599.0,99597.0,0.200878]
[1737999904839,0.1722,99622.0,99594.0,0.3608]
[1737999905035,0.200813,99630.0,99612.0,0.14475196]
[1737999905228,0.34936665,99630.0,99620.0,0.14475196]
[1737999906032,0.14855365,99630.0,99615.0,0.00015055]
[1737999906225,0.200828,99623.0,99615.0,0.00015055]
[1737999907239,0.14855365,99630.0,99620.0,0.200832]
[1737999907240,0.51235365,99630.0,99620.0,0.200832]
[1737999907425,0.51235365,99630.0,99620.0,0.34558396]
[1737999907634,0.51235365,99630.0,99619.0,0.3608]
[1737999907935,0.007,99623.0,99619.0,0.3608]
[1737999908439,0.3638,99630.0,99620.0,0.200832]
[1737999908634,0.3718,99630.0,99620.0,0.34558396]
[1737999908939,0.3718,99630.0,99615.0,0.00015055]
[1737999909133,0.3718,99630.0,99600.0,0.3559976]
[1737999909134,0.3608,99621.0,99600.0,0.3559976]
[1737999909437,0.3608,99608.0,99600.0,0.3559976]
[1737999909638,0.200863,99605.0,99600.0,0.3559976]
[1737999910037,0.200863,99605.0,99600.0,0.4013104]
[1737999910235,0.3278,99607.0,99600.0,0.4013104]
[1737999910839,0.3608,99608.0,99600.0,0.4013104]
[1737999910840,0.002,99605.0,99602.0,0.200869]
[1737999911142,0.0028617,99605.0,99602.0,0.200869]
[1737999911442,0.001,99605.0,99603.0,0.200867]
[1737999911834,0.3608,99631.0,99606.0,0.200861]
[1737999912042,0.3608,99631.0,99623.0,0.3608]
[1737999912241,0.1598,99646.0,99633.0,0.200806]
[1737999912441,0.1635,99652.0,99635.0,0.200802]
[1737999912835,0.1635,99652.0,99635.0,2.061602]
[1737999913141,0.00015055,99645.0,99637.0,0.200798]
[1737999913325,0.00015055,99645.0,99640.0,0.200792]
[1737999913726,0.1541,99662.0,99652.0,0.200768]
[1737999913932,0.3608,99677.0,99653.0,0.200766]
[1737999914236,0.3608,99677.0,99662.0,0.561547]
[1737999915041,0.20884493,99673.0,99657.0,0.200758]
[1737999915342,0.00015055,99673.0,99662.0,0.200747]
[1737999915735,0.00015055,99673.0,99666.0,0.20074]
[1737999916744,0.004,99664.0,99662.0,0.200748]
[1737999917135,0.00999,99668.0,99666.0,0.001]
[1737999917341,0.00999,99668.0,99666.0,0.201739]
[1737999918060,0.00999,99668.0,99666.0,0.001]
[1737999918233,0.00999,99668.0,99660.0,0.00084]
[1737999918432,0.00999,99668.0,99654.0,0.0945567]
[1737999918633,0.00799,99668.0,99661.0,0.20075]
[1737999918833,0.002,99664.0,99663.0,0.200745]
[1737999919035,0.002,99664.0,99657.0,0.200757]
[1737999919438,0.00799,99668.0,99664.0,0.200744]
[1737999919639,0.00899,99668.0,99666.0,0.56154]
[1737999919839,0.00799,99668.0,99666.0,0.56154]
[1737999920342,0.00699,99668.0,99666.0,0.56154]
[1737999920536,0.00299,99668.0,99666.0,0.56154]
[1737999921232,0.00299,99668.0,99666.0,0.51134474]
[1737999921432,0.00799,99668.0,99666.0,0.51234474]
[1737999922048,0.00999,99668.0,99666.0,0.51234474]
[1737999922547,0.00999,99668.0,99666.0,0.55649962]
[1737999924251,0.00999,99668.0,99666.0,0.50630436]
[1737999926440,0.00999,99668.0,99667.0,0.200738]
[1737999927239,0.00999,99668.0,99667.0,0.15054274]
[1737999929850,0.01099,99668.0,99667.0,0.15154274]
[1737999930050,1e-08,99668.0,99667.0,0.15154274]
[1737999930359,0.00299,99698.0,99696.0,0.15048474]
[1737999930653,0.5263,99727.0,99697.0,0.3608]
[1737999930855,0.1581,99739.0,99733.0,0.200605]
[1737999931149,0.32929912,99740.0,99733.0,0.200605]
[1737999931150,0.24653762,99734.0,99733.0,0.561405]
[1737999931339,0.24653762,99734.0,99733.0,2.061405]
[1737999931537,0.12350317,99734.0,99733.0,2.061405]
[1737999931743,0.48430317,99734.0,99733.0,1.5]
[1737999932044,0.20062,99726.0,99724.0,0.00015046]
[1737999932239,0.3608,99725.0,99724.0,0.00015046]
[1737999932937,0.11673318,99734.0,99724.0,0.36095046]
[1737999933145,0.11621317,99734.0,99733.0,0.561405]
[1737999933351,0.12521317,99734.0,99733.0,0.51220974]
[1737999933546,0.32877911,99740.0,99733.0,1.81160474]
[1737999933740,0.32877911,99740.0,99739.0,0.200593]
[1737999933946,0.32877911,99740.0,99733.0,1.81140474]
[1737999934152,0.32877911,99740.0,99733.0,1.81060474]
[1737999934453,0.008,99734.0,99733.0,1.81160474]
[1737999934655,0.008,99734.0,99733.0,1.8612026]
[1737999935248,0.011,99734.0,99733.0,1.8612026]
[1737999935451,0.011,99734.0,99733.0,0.05059786]
[1737999935452,0.211603,99734.0,99733.0,0.05059786]
[1737999935853,0.011,99734.0,99733.0,0.05059786]
[1737999936151,0.011,99734.0,99733.0,0.04959786]
[1737999936152,0.003,99734.0,99733.0,0.04959786]
[1737999936344,0.003,99734.0,99720.0,0.09570716]
[1737999936542,0.003,99734.0,99724.0,0.14475196]
[1737999936856,0.003,99734.0,99732.0,0.561406]
[1737999937048,0.00314046,99743.0,99732.0,0.3608]
[1737999937251,0.00031325,99743.0,99741.0,0.200588]
[1737999938253,0.00331325,99743.0,99741.0,0.200588]
[1737999939445,0.00331325,99743.0,99741.0,0.15039274]
[1737999939648,0.00431325,99743.0,99741.0,0.15039274]
[1737999939848,0.01031325,99743.0,99741.0,0.15139274]
[1737999940755,0.01031325,99743.0,99741.0,0.001]
[1737999940959,0.561387,99742.0,99741.0,0.001]
[1737999941154,0.8641,99742.0,99732.0,0.00015046]
[1737999941361,0.3608,99733.0,99732.0,0.00015046]
[1737999941750,0.70180001,99742.0,99738.0,0.200594]
[1737999942054,0.33127144,99742.0,99736.0,0.200599]
[1737999942259,0.33527144,99742.0,99732.0,0.50570242]
[1737999942460,0.33527144,99742.0,99736.0,0.15040374]
[1737999942850,0.34127144,99742.0,99732.0,0.14490242]
[1737999943059,0.34027144,99742.0,99732.0,0.14490242]
[1737999943244,0.34027144,99742.0,99732.0,0.00015046]
[1737999943558,0.200599,99736.0,99732.0,0.00015046]
[1737999943756,0.34027144,99742.0,99732.0,0.00015046]
[1737999943757,0.200605,99734.0,99732.0,0.00015046]
[1737999943948,0.3228,99735.0,99732.0,0.00015046]
[1737999944351,0.1583,99734.0,99732.0,0.00015046]
[1737999945448,0.34027144,99742.0,99731.0,0.05057535]
[1737999945449,0.009,99742.0,99731.0,0.41137535]
[1737999945654,0.006,99742.0,99732.0,0.14575196]
[1737999945854,0.006,99742.0,99735.0,0.200599]
[1737999946051,0.00031325,99743.0,99732.0,0.14575196]
[1737999946271,0.00031325,99743.0,99738.0,0.200593]
[1737999947565,0.00031325,99743.0,99732.0,0.14475196]
[1737999947753,0.00031325,99743.0,99742.0,0.561387]
[1737999948157,0.1611,99754.0,99742.0,1.5]
[1737999948352,0.1583,99757.0,99747.0,0.3608]
[1737999948549,0.1583,99757.0,99752.0,0.15037174]
[1737999948951,0.1583,99757.0,99747.0,0.561376]
[1737999949165,0.1583,99757.0,99744.0,0.14475196]
[1737999949364,0.200584,99744.0,99742.0,0.05054371]
[1737999949557,0.3608,99749.0,99742.0,0.04974371]
[1737999949747,0.3608,99749.0,99743.0,1.5]
[1737999949953,0.200565,99753.0,99743.0,1.5]
[1737999950454,0.200569,99751.0,99743.0,1.5]
[1737999950755,0.00252205,99749.0,99743.0,1.700585]
[1737999950960,0.00252205,99749.0,99744.0,0.200583]
[1737999951158,0.00252205,99749.0,99746.0,0.200578]
[1737999951353,0.00252205,99749.0,99743.0,1.5008]
[1737999951559,0.001,99744.0,99737.0,0.31060474]
[1737999952264,0.002,99749.0,99747.0,0.200576]
[1737999952758,0.002,99749.0,99747.0,0.561376]
[1737999952960,0.1583,99757.0,99747.0,0.561376]
[1737999953165,0.1583,99757.0,99747.0,0.50555196]
[1737999953359,0.1583,99757.0,99747.0,0.14475196]
[1737999953757,0.1583,99757.0,99750.0,0.20057]
[1737999954158,0.1583,99757.0,99747.0,0.14475196]
[1737999955266,0.002,99749.0,99747.0,0.19416865]
[1737999955461,0.002,99749.0,99747.0,0.04941669]
[1737999955770,0.002,99749.0,99743.0,0.200585]
[1737999955959,0.200563,99754.0,99739.0,0.50555196]
[1737999956159,0.200578,99747.0,99739.0,0.41075851]
[1737999956766,0.200578,99747.0,99739.0,0.04995851]
[1737999956967,0.200578,99747.0,99738.0,1.68019919]
[1737999957160,0.200578,99747.0,99738.0,1.67939919]
[1737999957674,0.3608,99741.0,99738.0,0.18036149]
[1737999958063,0.3608,99741.0,99739.0,1.5]
[1737999959366,0.3618,99741.0,99739.0,1.5]
[1737999959670,0.3618,99741.0,99740.0,0.200591]
[1737999960069,0.3638,99741.0,99740.0,0.200591]
[1737999960266,0.3638,99741.0,99740.0,1.5]
[1737999960468,0.564389,99741.0,99740.0,1.5]
[1737999960664,0.3638,99741.0,99720.0,0.09470716]
[1737999960868,0.3608,99729.0,99720.0,0.14475196]
[1737999961068,0.3608,99729.0,99722.0,1.5]
[1737999961665,0.5254,99729.0,99722.0,1.5]
[1737999962262,0.5254,99729.0,99722.0,1.505]
[1737999962459,0.5254,99729.0,99722.0,0.005]
[1737999962666,0.200625,99723.0,99722.0,0.005]
[1737999963083,0.52592001,99729.0,99722.0,0.005]
[1737999963262,0.5254,99729.0,99722.0,0.005]
[1737999963461,0.726014,99729.0,99722.0,0.005]
[1737999963768,0.726014,99729.0,99720.0,1.50566541]
[1737999963769,0.5254,99729.0,99720.0,1.50566541]
[1737999963955,0.5254,99729.0,99719.0,0.00150417]
[1737999963956,0.200631,99720.0,99719.0,0.00150417]
[1737999964363,0.3608,99721.0,99719.0,0.00150417]
[1737999965274,0.52600001,99729.0,99719.0,0.00150417]
[1737999965577,0.5254,99729.0,99722.0,0.003]
[1737999965760,0.200625,99723.0,99722.0,0.003]
[1737999965961,0.52592001,99729.0,99722.0,0.003]
[1737999966162,0.5254,99729.0,99719.0,1.50438417]